fUSD/lending_fUSD_20260612
["ID","MTS","AMOUNT","RATE_DAILY","PERIOD"]
[424921015,1781272257000,-200.0,0.00031433,2]
[424921017,1781272257000,-200.0,0.00031433,2]
[424921016,1781272257000,-200.0,0.00031433,2]
[424921018,1781272257000,-200.0,0.00031433,2]
[424921025,1781272257000,-200.0,0.00031433,2]
[424921023,1781272257000,-200.0,0.00031433,2]
[424921020,1781272257000,-200.0,0.00031433,2]
[424921021,1781272257000,-200.0,0.00031433,2]
[424921022,1781272257000,-200.0,0.00031433,2]
[424921024,1781272257000,-200.0,0.00031433,2]
[424921026,1781272257000,-200.0,0.00031433,2]
[424921030,1781272257000,-500.0,0.00031433,2]
[424921027,1781272257000,-200.0,0.00031433,2]
[424921029,1781272257000,-167.0,0.00031433,2]
[424921028,1781272257000,-200.0,0.00031433,2]
[424921031,1781272257000,-500.0,0.00031433,2]
[424921032,1781272257000,-500.0,0.00031433,2]
[424920976,1781272257000,-1350.0,0.0003132,2]
[424921033,1781272257000,-500.0,0.00031433,2]
[424921009,1781272257000,-200.0,0.00031433,2]
[424921013,1781272257000,-200.0,0.00031433,2]
[424921019,1781272257000,-200.0,0.00031433,2]
[424921007,1781272257000,-200.0,0.00031433,2]
[424920984,1781272257000,-3000.0,0.0003132,2]
[424921010,1781272257000,-200.0,0.00031433,2]
[424920986,1781272257000,-2000.0,0.0003132,2]
[424920987,1781272257000,-2000.0,0.0003132,2]
[424920989,1781272257000,-255.39,0.0003132,2]
[424920992,1781272257000,-200.0,0.00031433,2]
[424920988,1781272257000,-2000.0,0.0003132,2]
[424920991,1781272257000,-159.52380952,0.00031348,2]
[424920990,1781272257000,-2442.73462334,0.00031342,7]
[424920993,1781272257000,-200.0,0.00031433,2]
[424920995,1781272257000,-200.0,0.00031433,2]
[424920994,1781272257000,-200.0,0.00031433,2]
[424920985,1781272257000,-154.88,0.0003132,2]
[424920996,1781272257000,-200.0,0.00031433,2]
[424920997,1781272257000,-200.0,0.00031433,2]
[424921000,1781272257000,-200.0,0.00031433,2]
[424920999,1781272257000,-200.0,0.00031433,2]
[424921001,1781272257000,-200.0,0.00031433,2]
[424921003,1781272257000,-200.0,0.00031433,2]
[424921004,1781272257000,-200.0,0.00031433,2]
[424921002,1781272257000,-200.0,0.00031433,2]
[424921005,1781272257000,-200.0,0.00031433,2]
[424921006,1781272257000,-200.0,0.00031433,2]
[424920998,1781272257000,-200.0,0.00031433,2]
[424921061,1781272258000,-250.0,0.0003146,2]
[424921071,1781272258000,-157663.4375617,0.00031487,2]
[424921069,1781272258000,-200.0,0.00031484,2]
[424921068,1781272258000,-200.0,0.00031483,2]
[424921065,1781272258000,-914.0,0.00031466,120]
[424921067,1781272258000,-200.0,0.00031481,2]
[424921064,1781272258000,-950.0,0.00031466,120]
[424921063,1781272258000,-950.0,0.00031466,120]
[424921072,1781272258000,-200.0,0.00031492,2]
[424921060,1781272258000,-250.0,0.0003146,2]
[424921066,1781272258000,-200.0,0.0003148,2]
[424921078,1781272258000,-407.0,0.00031544,60]
[424921073,1781272258000,-200.0,0.00031495,2]
[424921076,1781272258000,-500.0,0.00031544,60]
[424921074,1781272258000,-588.0,0.000315,2]
[424921079,1781272258000,-150.0,0.0003161,2]
[424921070,1781272258000,-2079.4098192,0.00031487,2]
[424921077,1781272258000,-500.0,0.00031544,60]
[424921075,1781272258000,-180.15,0.000315,7]
[424921081,1781272258000,-150.0,0.0003161,2]
[424921082,1781272258000,-150.0,0.0003161,2]
[424921083,1781272258000,-150.0,0.0003161,2]
[424921085,1781272258000,-150.0,0.00031644,2]
[424921080,1781272258000,-150.0,0.0003161,2]
[424921062,1781272258000,-250.0,0.0003146,2]
[424921036,1781272258000,-556.0,0.00031433,2]
[424921059,1781272258000,-250.0,0.0003146,2]
[424921084,1781272258000,-188.45686017,0.0003161,2]
[424921035,1781272258000,-500.0,0.00031433,2]
[424921037,1781272258000,-505.0,0.00031433,14]
[424921034,1781272258000,-500.0,0.00031433,2]
[424921039,1781272258000,-200.0,0.00031452,2]
[424921038,1781272258000,-154.52198296,0.00031452,22]
[424921040,1781272258000,-200.0,0.00031452,2]
[424921043,1781272258000,-200.0,0.00031452,2]
[424921045,1781272258000,-200.0,0.00031452,2]
[424921042,1781272258000,-200.0,0.00031452,2]
[424921044,1781272258000,-200.0,0.00031452,2]
[424921041,1781272258000,-200.0,0.00031452,2]
[424921047,1781272258000,-200.0,0.00031452,2]
[424921049,1781272258000,-200.0,0.00031452,2]
[424921048,1781272258000,-200.0,0.00031452,2]
[424921050,1781272258000,-200.0,0.00031452,2]
[424921053,1781272258000,-200.0,0.00031452,2]
[424921054,1781272258000,-200.0,0.00031452,2]
[424921056,1781272258000,-172.0,0.00031452,2]
[424921051,1781272258000,-200.0,0.00031452,2]
[424921052,1781272258000,-200.0,0.00031452,2]
[424921055,1781272258000,-200.0,0.00031452,2]
[424921057,1781272258000,-250.0,0.0003146,2]
[424921058,1781272258000,-250.0,0.0003146,2]
[424921087,1781272258000,-936.30182881,0.00031677,7]
[424921046,1781272258000,-200.0,0.00031452,2]
[424921089,1781272258000,-1002.54450837,0.00031677,7]
[424921120,1781272258000,-496.53598069,0.00031849,120]
[424921116,1781272258000,-250.0,0.00031791,2]
[424921113,1781272258000,-977.26563702,0.00031787,7]
[424921117,1781272258000,-250.0,0.00031791,2]
[424921118,1781272258000,-250.0,0.00031791,2]
[424921115,1781272258000,-250.0,0.00031791,2]
[424921122,1781272258000,-1000.0,0.00031937,2]
[424921124,1781272258000,-1647.62,0.00031937,2]
[424921127,1781272258000,-344.0,0.00031999,3]
[424921132,1781272258000,-192.57928027,0.00032,120]
[424921128,1781272258000,-164.58473458,0.00032,120]
[424921121,1781272258000,-150.0,0.00031857,30]
[424921129,1781272258000,-552.15233041,0.00032,120]
[424921133,1781272258000,-788.71349844,0.00032,120]
[424921130,1781272258000,-161.21553281,0.00032,120]
[424921131,1781272258000,-172.5727479,0.00032,120]
[424921134,1781272258000,-189.39016739,0.00032,120]
[424921137,1781272258000,-185.65194979,0.00032,120]
[424921136,1781272258000,-189.9214738,0.00032,120]
[424921140,1781272258000,-20000.0,0.00032,120]
[424921138,1781272258000,-389.91624851,0.00032,120]
[424921135,1781272258000,-409.26081717,0.00032,120]
[424921139,1781272258000,-506.74040645,0.00032,120]
[424921086,1781272258000,-944.78945957,0.00031677,7]
[424921125,1781272258000,-1000.0,0.00031937,2]
[424921119,1781272258000,-250.0,0.00031791,2]
[424921126,1781272258000,-1746.02,0.00031937,2]
[424921114,1781272258000,-994.05651469,0.00031787,7]
[424921088,1781272258000,-903.03808654,0.00031677,7]
[424921123,1781272258000,-1471.42,0.00031937,2]
[424921090,1781272258000,-936.13059555,0.00031677,7]
[424921092,1781272258000,-930.76371688,0.00031677,2]
[424921091,1781272258000,-1032.34478208,0.00031677,7]
[424921100,1781272258000,-950.63580823,0.00031683,7]
[424921097,1781272258000,-954.77411861,0.00031683,5]
[424921093,1781272258000,-905.32208963,0.00031683,7]
[424921095,1781272258000,-1453.33163233,0.00031683,7]
[424921099,1781272258000,-1243.0293475,0.00031683,7]
[424921096,1781272258000,-1708.61271906,0.00031683,7]
[424921098,1781272258000,-1077.20617627,0.00031683,7]
[424921094,1781272258000,-1054.16022333,0.00031683,7]
[424921104,1781272258000,-943.90018593,0.00031683,7]
[424921102,1781272258000,-937.06108133,0.00031683,7]
[424921103,1781272258000,-962.4377461,0.00031683,7]
[424921105,1781272258000,-925.28788795,0.00031683,7]
[424921110,1781272258000,-923.49326083,0.00031787,7]
[424921112,1781272258000,-949.33683318,0.00031787,7]
[424921106,1781272258000,-1079.08560793,0.00031683,7]
[424921107,1781272258000,-1047.06303818,0.00031688,7]
[424921109,1781272258000,-1799.53918772,0.00031787,7]
[424921111,1781272258000,-1042.7531932,0.00031787,7]
[424921101,1781272258000,-929.1419971,0.00031683,7]
[424921108,1781272258000,-901.5205631,0.00031688,7]
[424921180,1781272259000,-1012.755038,0.00032232,7]
[424921170,1781272259000,-537.358854,0.00032232,7]
[424921178,1781272259000,-1012.755038,0.00032232,7]
[424921177,1781272259000,-151.0,0.00032232,7]
[424921174,1781272259000,-151.0,0.00032232,7]
[424921181,1781272259000,-1012.755038,0.00032232,7]
[424921173,1781272259000,-537.358854,0.00032232,7]
[424921179,1781272259000,-151.0,0.00032232,7]
[424921176,1781272259000,-1012.755038,0.00032232,7]
[424921175,1781272259000,-151.0,0.00032232,7]
[424921172,1781272259000,-537.358854,0.00032232,7]
[424921184,1781272259000,-894.922872,0.00032232,7]
[424921194,1781272259000,-323.692474,0.00032232,7]
[424921185,1781272259000,-894.922872,0.00032232,7]
[424921187,1781272259000,-151.0,0.00032232,7]
[424921186,1781272259000,-151.0,0.00032232,7]
[424921182,1781272259000,-894.922872,0.00032232,7]
[424921193,1781272259000,-154.009562,0.00032232,7]
[424921188,1781272259000,-154.009562,0.00032232,7]
[424921190,1781272259000,-323.692474,0.00032232,7]
[424921191,1781272259000,-154.009562,0.00032232,7]
[424921192,1781272259000,-323.692474,0.00032232,7]
[424921189,1781272259000,-154.009562,0.00032232,7]
[424921196,1781272259000,-323.692474,0.00032232,7]
[424921171,1781272259000,-537.358854,0.00032232,7]
[424921183,1781272259000,-894.922872,0.00032232,7]
[424921168,1781272259000,-100000.0,0.00032232,60]
[424921142,1781272259000,-192.78067843,0.00032,120]
[424921165,1781272259000,-329.0,0.0003223,30]
[424921141,1781272259000,-181.3074543,0.00032,120]
[424921202,1781272259000,-151.0,0.00032334,7]
[424921143,1781272259000,-162.88044551,0.00032,120]
[424921144,1781272259000,-188.6840366,0.00032,120]
[424921145,1781272259000,-174.6254819,0.00032,120]
[424921147,1781272259000,-177.39768194,0.00032,120]
[424921157,1781272259000,-357.0,0.00032227,30]
[424921146,1781272259000,-3000.0,0.00032,120]
[424921150,1781272259000,-10826.0,0.00032037,10]
[424921148,1781272259000,-188.398215,0.00032,120]
[424921155,1781272259000,-175.0,0.000322,30]
[424921149,1781272259000,-3000.0,0.00032,3]
[424921156,1781272259000,-1215.0,0.0003221,5]
[424921152,1781272259000,-250.0,0.00032123,2]
[424921153,1781272259000,-250.0,0.00032123,2]
[424921154,1781272259000,-250.0,0.00032123,2]
[424921151,1781272259000,-250.0,0.00032123,2]
[424921158,1781272259000,-304.0,0.00032227,30]
[424921160,1781272259000,-936.0,0.00032227,30]
[424921162,1781272259000,-398.0,0.0003223,30]
[424921161,1781272259000,-2212.0,0.0003223,30]
[424921163,1781272259000,-244.0,0.0003223,30]
[424921169,1781272259000,-100000.0,0.00032232,30]
[424921164,1781272259000,-809.0,0.0003223,30]
[424921167,1781272259000,-89799.66313349,0.00032232,90]
[424921159,1781272259000,-177.0,0.00032227,30]
[424921195,1781272259000,-955.089736,0.00032232,7]
[424921166,1781272259000,-100000.0,0.00032232,120]
[424921201,1781272259000,-1852.0,0.00032232,30]
[424921238,1781272259000,-425.00166298,0.00032819,2]
[424921233,1781272259000,-237.38,0.00032776,5]
[424921239,1781272259000,-157.33036761,0.00032847,2]
[424921230,1781272259000,-500.0,0.00032756,60]
[424921234,1781272259000,-1734.26,0.00032776,2]
[424921232,1781272259000,-505.48364925,0.00032756,60]
[424921231,1781272259000,-500.0,0.00032756,60]
[424921229,1781272259000,-438.98,0.00032744,2]
[424921237,1781272259000,-250.0,0.00032785,2]
[424921236,1781272259000,-250.0,0.00032785,2]
[424921241,1781272259000,-351.55,0.00032877,2]
[424921240,1781272259000,-2325.0,0.00032871,11]
[424921235,1781272259000,-1003.04672581,0.00032776,2]
[424921249,1781272259000,-286.967806,0.00032877,7]
[424921250,1781272259000,-209.432558,0.00032877,7]
[424921246,1781272259000,-151.0,0.00032877,7]
[424921243,1781272259000,-274.760788,0.00032877,7]
[424921245,1781272259000,-564.49692238,0.00032877,2]
[424921247,1781272259000,-153.856381,0.00032877,7]
[424921248,1781272259000,-151.0,0.00032877,7]
[424921251,1781272259000,-151.0,0.00032877,7]
[424921253,1781272259000,-178.366787,0.00032877,7]
[424921252,1781272259000,-748.84,0.00032877,2]
[424921254,1781272259000,-151.0,0.00032877,7]
[424921255,1781272259000,-151.0,0.00032877,7]
[424921204,1781272259000,-151.0,0.00032337,7]
[424921242,1781272259000,-191.923009,0.00032877,7]
[424921225,1781272259000,-10000.0,0.0003268,2]
[424921244,1781272259000,-176.476368,0.00032877,7]
[424921219,1781272259000,-250.0,0.00032454,2]
[424921223,1781272259000,-150.0,0.00032535,30]
[424921200,1781272259000,-178.0,0.00032232,30]
[424921197,1781272259000,-955.089736,0.00032232,7]
[424921199,1781272259000,-955.089736,0.00032232,7]
[424921203,1781272259000,-151.0,0.00032337,7]
[424921206,1781272259000,-155.279508,0.00032337,7]
[424921205,1781272259000,-155.279508,0.00032337,7]
[424921214,1781272259000,-150.0,0.00032345,2]
[424921209,1781272259000,-5158.9177338,0.00032337,2]
[424921211,1781272259000,-150.0,0.00032345,2]
[424921208,1781272259000,-155.279508,0.00032337,7]
[424921198,1781272259000,-955.089736,0.00032232,7]
[424921215,1781272259000,-150.0,0.00032345,2]
[424921207,1781272259000,-155.279508,0.00032337,7]
[424921216,1781272259000,-150.0,0.00032345,2]
[424921220,1781272259000,-250.0,0.00032454,2]
[424921213,1781272259000,-150.0,0.00032345,2]
[424921226,1781272259000,-313.25,0.00032686,2]
[424921222,1781272259000,-1000.0,0.000325,14]
[424921221,1781272259000,-505.0,0.00032467,15]
[424921227,1781272259000,-8000.0,0.000327,14]
[424921224,1781272259000,-496.53598069,0.00032643,120]
[424921217,1781272259000,-150.0,0.00032383,2]
[424921228,1781272259000,-503.02,0.00032725,14]
[424921218,1781272259000,-250.0,0.00032454,2]
[424921212,1781272259000,-150.0,0.00032345,2]
[424921210,1781272259000,-150.0,0.00032345,2]
[424921276,1781272260000,-508.40979557,0.00032955,2]
[424921275,1781272260000,-500.0,0.00032955,2]
[424921278,1781272260000,-1157.50926483,0.00032975,7]
[424921282,1781272260000,-1169.63525976,0.00032975,7]
[424921274,1781272260000,-500.0,0.00032955,2]
[424921283,1781272260000,-1092.15236147,0.00032975,7]
[424921284,1781272260000,-1204.40224576,0.00032975,7]
[424921281,1781272260000,-1053.5444343,0.00032975,7]
[424921277,1781272260000,-247.59187077,0.00032955,2]
[424921280,1781272260000,-1092.35213361,0.00032975,7]
[424921279,1781272260000,-1102.2543695,0.00032975,7]
[424921287,1781272260000,-1056.20910457,0.00032981,7]
[424921271,1781272260000,-150.0,0.00032955,2]
[424921285,1781272260000,-1085.89100303,0.00032975,2]
[424921267,1781272260000,-430.85506059,0.00032877,2]
[424921260,1781272260000,-257.25612,0.00032877,7]
[424921269,1781272260000,-151.57489998,0.00032932,11]
[424921286,1781272260000,-837.99,0.00032977,30]
[424921256,1781272260000,-151.0,0.00032877,7]
[424921258,1781272260000,-151.0,0.00032877,7]
[424921262,1781272260000,-500.0,0.00032877,2]
[424921257,1781272260000,-168.793865,0.00032877,7]
[424921259,1781272260000,-151.0,0.00032877,7]
[424921270,1781272260000,-150.0,0.00032955,2]
[424921261,1781272260000,-500.0,0.00032877,2]
[424921264,1781272260000,-500.0,0.00032877,2]
[424921265,1781272260000,-500.0,0.00032877,2]
[424921266,1781272260000,-500.0,0.00032877,2]
[424921268,1781272260000,-501.16457,0.00032877,120]
[424921273,1781272260000,-500.0,0.00032955,2]
[424921272,1781272260000,-290.57890212,0.00032955,2]
[424921263,1781272260000,-500.0,0.00032877,2]
[424921288,1781272260000,-1695.55357106,0.00032981,7]
[424921293,1781272260000,-1258.93320925,0.00032981,7]
[424921289,1781272260000,-1993.38150557,0.00032981,7]
[424921290,1781272260000,-1256.74053898,0.00032981,7]
[424921321,1781272260000,-794.067464,0.00033,7]
[424921322,1781272260000,-794.067464,0.00033,7]
[424921319,1781272260000,-151.0,0.00033,7]
[424921318,1781272260000,-154.774495,0.00033,7]
[424921313,1781272260000,-154.406565,0.00033,7]
[424921314,1781272260000,-151.0,0.00033,7]
[424921312,1781272260000,-199.77528914,0.00033,2]
[424921317,1781272260000,-1131984.91734172,0.00033,7]
[424921316,1781272260000,-151.0,0.00033,7]
[424921311,1781272260000,-188.6840366,0.00033,120]
[424921315,1781272260000,-151.0,0.00033,7]
[424921310,1781272260000,-162.88044551,0.00033,120]
[424921309,1781272260000,-192.78067843,0.00033,120]
[424921308,1781272260000,-359.07,0.00033,7]
[424921320,1781272260000,-151.0,0.00033,7]
[424921305,1781272260000,-20000.0,0.00033,120]
[424921307,1781272260000,-20000.0,0.00033,120]
[424921292,1781272260000,-1101.21688358,0.00032981,7]
[424921291,1781272260000,-1450.20090541,0.00032981,7]
[424921295,1781272260000,-552.15233041,0.00033,120]
[424921297,1781272260000,-788.71349844,0.00033,120]
[424921296,1781272260000,-161.21553281,0.00033,120]
[424921300,1781272260000,-185.65194979,0.00033,120]
[424921294,1781272260000,-164.58473458,0.00033,120]
[424921301,1781272260000,-189.9214738,0.00033,120]
[424921302,1781272260000,-389.91624851,0.00033,120]
[424921299,1781272260000,-409.26081717,0.00033,120]
[424921304,1781272260000,-20000.0,0.00033,120]
[424921306,1781272260000,-20000.0,0.00033,120]
[424921298,1781272260000,-189.39016739,0.00033,120]
[424921303,1781272260000,-506.74040645,0.00033,120]
[424921362,1781272261000,-151.49,0.00033465,2]
[424921359,1781272261000,-3000.0,0.000333,20]
[424921357,1781272261000,-1852.0,0.00033232,30]
[424921355,1781272261000,-329.0,0.0003323,30]
[424921353,1781272261000,-244.0,0.0003323,30]
[424921360,1781272261000,-17670.40591519,0.00033368,2]
[424921351,1781272261000,-2212.0,0.0003323,30]
[424921356,1781272261000,-178.0,0.00033232,30]
[424921354,1781272261000,-809.0,0.0003323,30]
[424921358,1781272261000,-350.0,0.0003329,6]
[424921361,1781272261000,-150.333981,0.00033398,2]
[424921366,1781272261000,-476.106342,0.00033477,120]
[424921365,1781272261000,-152.22,0.00033472,2]
[424921368,1781272261000,-496.53598069,0.000335,120]
[424921367,1781272261000,-505.0,0.000335,16]
[424921371,1781272261000,-500.0,0.00033578,60]
[424921363,1781272261000,-151.0,0.00033472,2]
[424921369,1781272261000,-321.32,0.00033519,7]
[424921370,1781272261000,-459.0,0.00033537,3]
[424921372,1781272261000,-252.68,0.000336,15]
[424921376,1781272261000,-336.74,0.00033735,5]
[424921375,1781272261000,-737.04115096,0.000337,7]
[424921352,1781272261000,-398.0,0.0003323,30]
[424921364,1781272261000,-151.49,0.00033472,2]
[424921350,1781272261000,-936.0,0.00033227,30]
[424921328,1781272261000,-150.0,0.0003308,2]
[424921345,1781272261000,-350.0,0.00033223,3]
[424921374,1781272261000,-300.0,0.000337,12]
[424921325,1781272261000,-794.067464,0.00033,7]
[424921323,1781272261000,-794.067464,0.00033,7]
[424921327,1781272261000,-151.0,0.00033,7]
[424921324,1781272261000,-151.0,0.00033,7]
[424921330,1781272261000,-150.0,0.0003308,2]
[424921333,1781272261000,-150.0,0.0003308,2]
[424921334,1781272261000,-2099.46238568,0.00033088,7]
[424921331,1781272261000,-150.0,0.0003308,2]
[424921336,1781272261000,-1107.55963871,0.00033089,7]
[424921332,1781272261000,-150.0,0.0003308,2]
[424921349,1781272261000,-177.0,0.00033227,30]
[424921337,1781272261000,-1140.14324319,0.00033089,7]
[424921329,1781272261000,-150.0,0.0003308,2]
[424921338,1781272261000,-1159.73260047,0.00033089,7]
[424921340,1781272261000,-250.0,0.00033116,2]
[424921341,1781272261000,-502.60054144,0.00033123,120]
[424921347,1781272261000,-357.0,0.00033227,30]
[424921344,1781272261000,-150.0,0.00033213,30]
[424921346,1781272261000,-150.0,0.00033226,2]
[424921339,1781272261000,-180.15,0.000331,30]
[424921343,1781272261000,-501.16457,0.00033177,120]
[424921342,1781272261000,-432.57904068,0.00033123,120]
[424921348,1781272261000,-304.0,0.00033227,30]
[424921335,1781272261000,-1216.54539207,0.00033089,7]
[424921378,1781272261000,-451.048113,0.00033777,120]
[424921326,1781272261000,-151.0,0.00033,7]
[424921381,1781272261000,-150.0,0.00033815,2]
[424921416,1781272261000,-388.289089,0.000339,7]
[424921405,1781272261000,-152.342146,0.000339,7]
[424921409,1781272261000,-165.598949,0.000339,7]
[424921408,1781272261000,-165.598949,0.000339,7]
[424921407,1781272261000,-244.274284,0.000339,7]
[424921413,1781272261000,-388.289089,0.000339,7]
[424921410,1781272261000,-165.598949,0.000339,7]
[424921412,1781272261000,-151.0,0.000339,7]
[424921411,1781272261000,-165.598949,0.000339,7]
[424921417,1781272261000,-300.0,0.000339,12]
[424921419,1781272261000,-151.0,0.000339,7]
[424921415,1781272261000,-388.289089,0.000339,7]
[424921422,1781272261000,-4347.553885,0.000339,7]
[424921420,1781272261000,-151.0,0.000339,7]
[424921427,1781272261000,-151.0,0.000339,7]
[424921423,1781272261000,-4347.553885,0.000339,7]
[424921425,1781272261000,-151.0,0.000339,7]
[424921426,1781272261000,-151.0,0.000339,7]
[424921380,1781272261000,-150.0,0.00033815,2]
[424921424,1781272261000,-4347.553885,0.000339,7]
[424921428,1781272261000,-418.555814,0.000339,7]
[424921430,1781272261000,-418.555814,0.000339,7]
[424921429,1781272261000,-418.555814,0.000339,7]
[424921431,1781272261000,-418.555814,0.000339,7]
[424921421,1781272261000,-4347.553885,0.000339,7]
[424921414,1781272261000,-388.289089,0.000339,7]
[424921418,1781272261000,-166.841507,0.000339,7]
[424921401,1781272261000,-320.067124,0.000339,7]
[424921379,1781272261000,-300.0,0.000338,12]
[424921406,1781272261000,-151.0,0.000339,7]
[424921382,1781272261000,-150.0,0.00033815,2]
[424921377,1781272261000,-10627.64,0.0003376,9]
[424921373,1781272261000,-8660.0,0.00033653,10]
[424921384,1781272261000,-150.0,0.00033815,2]
[424921383,1781272261000,-150.0,0.00033815,2]
[424921385,1781272261000,-2354.0,0.00033881,11]
[424921387,1781272261000,-150.0,0.0003389,30]
[424921388,1781272261000,-150.0,0.0003389,30]
[424921391,1781272261000,-788.71349844,0.000339,120]
[424921389,1781272261000,-9113.25712935,0.000339,31]
[424921390,1781272261000,-552.15233041,0.000339,120]
[424921386,1781272261000,-160.0,0.00033881,11]
[424921398,1781272261000,-162.88044551,0.000339,120]
[424921392,1781272261000,-409.26081717,0.000339,120]
[424921400,1781272261000,-320.067124,0.000339,7]
[424921399,1781272261000,-188.6840366,0.000339,120]
[424921397,1781272261000,-151.0,0.000339,7]
[424921404,1781272261000,-320.067124,0.000339,7]
[424921402,1781272261000,-320.067124,0.000339,7]
[424921395,1781272261000,-506.74040645,0.000339,120]
[424921394,1781272261000,-389.91624851,0.000339,120]
[424921396,1781272261000,-2000.0,0.000339,2]
[424921393,1781272261000,-189.9214738,0.000339,120]
[424921403,1781272261000,-151.0,0.000339,7]
[424921471,1781272262000,-160.0,0.00034132,11]
[424921472,1781272262000,-2323.0,0.00034132,11]
[424921469,1781272262000,-1010.73,0.000341,120]
[424921467,1781272262000,-46062.5208916,0.00034093,2]
[424921458,1781272262000,-444.0,0.0003398,5]
[424921465,1781272262000,-301.49696,0.0003409,50]
[424921462,1781272262000,-149246.38641645,0.00034,120]
[424921473,1781272262000,-301.49697,0.0003414,51]
[424921463,1781272262000,-150.0,0.00034002,2]
[424921470,1781272262000,-200.0,0.00034124,10]
[424921464,1781272262000,-553.465535,0.00034078,120]
[424921468,1781272262000,-2026.35,0.00034097,2]
[424921480,1781272262000,-936.0,0.00034227,30]
[424921474,1781272262000,-1215.0,0.00034182,7]
[424921475,1781272262000,-463.9790459,0.00034197,2]
[424921476,1781272262000,-35179.4680727,0.00034197,2]
[424921477,1781272262000,-357.0,0.00034227,30]
[424921485,1781272262000,-329.0,0.0003423,30]
[424921478,1781272262000,-304.0,0.00034227,30]
[424921482,1781272262000,-398.0,0.0003423,30]
[424921481,1781272262000,-2212.0,0.0003423,30]
[424921483,1781272262000,-244.0,0.0003423,30]
[424921484,1781272262000,-809.0,0.0003423,30]
[424921461,1781272262000,-3312.0,0.00034,20]
[424921466,1781272262000,-1227.0,0.00034093,2]
[424921459,1781272262000,-254.01406,0.00034,120]
[424921432,1781272262000,-236495.1563426,0.00033951,2]
[424921460,1781272262000,-221.97254349,0.00034,2]
[424921479,1781272262000,-177.0,0.00034227,30]
[424921436,1781272262000,-266.62628395,0.00033973,2]
[424921434,1781272262000,-250.0,0.00033973,2]
[424921438,1781272262000,-500.0,0.00033973,2]
[424921433,1781272262000,-250.0,0.00033973,2]
[424921435,1781272262000,-250.0,0.00033973,2]
[424921437,1781272262000,-500.0,0.00033973,2]
[424921440,1781272262000,-500.0,0.00033973,2]
[424921450,1781272262000,-500.0,0.00033973,2]
[424921442,1781272262000,-500.0,0.00033973,2]
[424921443,1781272262000,-500.0,0.00033973,2]
[424921445,1781272262000,-500.0,0.00033973,2]
[424921448,1781272262000,-500.0,0.00033973,2]
[424921439,1781272262000,-500.0,0.00033973,2]
[424921444,1781272262000,-500.0,0.00033973,2]
[424921441,1781272262000,-500.0,0.00033973,2]
[424921447,1781272262000,-500.0,0.00033973,2]
[424921446,1781272262000,-500.0,0.00033973,2]
[424921449,1781272262000,-500.0,0.00033973,2]
[424921451,1781272262000,-500.0,0.00033973,2]
[424921453,1781272262000,-500.0,0.00033973,2]
[424921452,1781272262000,-500.0,0.00033973,2]
[424921455,1781272262000,-500.0,0.00033973,2]
[424921456,1781272262000,-323.97630333,0.00033973,2]
[424921454,1781272262000,-500.0,0.00033973,2]
[424921457,1781272262000,-150.0,0.00033973,2]
[424921486,1781272262000,-178.0,0.00034232,30]